fUSD/lending_fUSD_20240915
["ID","MTS","AMOUNT","RATE_DAILY","PERIOD"]
[338254999,1726441865962,-500.0,0.00014794,2]
[338255000,1726441865971,-500.0,0.00014794,2]
[338255001,1726441865983,-500.0,0.00014794,2]
[338255002,1726441865992,-500.0,0.00014794,2]
[338255003,1726441866001,-500.0,0.00014794,2]
[338255004,1726441866010,-500.0,0.00014794,2]
[338255005,1726441866029,-500.0,0.00014794,2]
[338255006,1726441866038,-500.0,0.00014794,2]
[338255007,1726441866047,-500.0,0.00014794,2]
[338255008,1726441866057,-500.0,0.00014794,2]
[338255009,1726441866066,-551.56768142,0.00014794,2]
[338255010,1726441866075,-500.0,0.00014794,2]
[338255011,1726441866084,-498.34,0.00014794,2]
[338255012,1726441866094,-598.24,0.00014794,2]
[338255013,1726441866103,-598.24,0.00014794,2]
[338255014,1726441866113,-500.0,0.00014794,2]
[338255015,1726441866123,-598.24,0.00014794,2]
[338255016,1726441866132,-598.24,0.00014794,2]
[338255017,1726441866142,-598.24,0.00014794,2]
[338255018,1726441866151,-598.24,0.00014794,2]
[338255019,1726441866161,-598.24,0.00014794,2]
[338255020,1726441866171,-598.24,0.00014794,2]
[338255021,1726441866180,-598.24,0.00014794,2]
[338255022,1726441866190,-598.24,0.00014794,2]
[338255023,1726441866200,-598.24,0.00014794,2]
[338255024,1726441866211,-598.24,0.00014794,2]
[338255025,1726441866222,-598.24,0.00014794,2]
[338255026,1726441866232,-598.24,0.00014794,2]
[338255027,1726441866243,-598.24,0.00014794,2]
[338255028,1726441866252,-598.24,0.00014794,2]
[338255029,1726441866261,-598.24,0.00014794,2]
[338255030,1726441866280,-598.24,0.00014794,2]
[338255031,1726441866289,-598.24,0.00014794,2]
[338255032,1726441866299,-598.24,0.00014794,2]
[338255033,1726441866309,-598.24,0.00014794,2]
[338255034,1726441866318,-598.24,0.00014794,2]
[338255035,1726441866328,-598.24,0.00014794,2]
[338255036,1726441866338,-598.2740832,0.00014794,2]
[338255037,1726441866348,-1953.25,0.00014794,2]
[338255038,1726441866358,-1953.25,0.00014794,2]
[338255039,1726441866367,-1953.25,0.00014794,2]
[338255040,1726441866377,-1953.25,0.00014794,2]
[338255041,1726441866386,-1953.25,0.00014794,2]
[338255042,1726441866396,-1953.25,0.00014794,2]
[338255043,1726441866406,-1953.25,0.00014794,2]
[338255044,1726441866416,-1953.25,0.00014794,2]
[338255045,1726441866426,-1953.25,0.00014794,2]
[338255046,1726441866436,-1953.25,0.00014794,2]
[338255047,1726441866445,-1953.25,0.00014794,2]
[338255048,1726441866457,-1953.25,0.00014794,2]
[338255049,1726441866468,-1953.25,0.00014794,2]
[338255050,1726441866478,-1953.25,0.00014794,2]
[338255051,1726441866488,-1953.25,0.00014794,2]
[338255052,1726441866498,-1953.25,0.00014794,2]
[338255053,1726441866507,-1953.25,0.00014794,2]
[338255054,1726441866522,-1953.25,0.00014794,2]
[338255055,1726441866531,-1953.25,0.00014794,2]
[338255056,1726441866541,-1953.25,0.00014794,2]
[338255057,1726441866551,-1953.25,0.00014794,2]
[338255058,1726441866560,-1953.25,0.00014794,2]
[338255059,1726441866570,-1953.25,0.00014794,2]
[338255060,1726441866580,-1953.47603526,0.00014794,2]
[338255061,1726441866589,-601.64,0.00014794,2]
[338255062,1726441866599,-601.64,0.00014794,2]
[338255063,1726441866609,-601.64,0.00014794,2]
[338255064,1726441866618,-601.64,0.00014794,2]
[338255065,1726441866627,-500.0,0.00014794,2]
[338255066,1726441866638,-601.64,0.00014794,2]
[338255067,1726441866649,-601.64,0.00014794,2]
[338255068,1726441866659,-500.0,0.00014794,2]
[338255069,1726441866669,-601.64,0.00014794,2]
[338255070,1726441866678,-500.0,0.00014794,2]
[338255071,1726441866688,-601.64,0.00014794,2]
[338255072,1726441866698,-500.0,0.00014794,2]
[338255073,1726441866708,-601.64,0.00014794,2]
[338255074,1726441866719,-500.0,0.00014794,2]
[338255075,1726441866729,-500.0,0.00014794,2]
[338255076,1726441866739,-601.64,0.00014794,2]
[338255077,1726441866748,-500.0,0.00014794,2]
[338255078,1726441866758,-601.64,0.00014794,2]
[338255079,1726441866775,-500.0,0.00014794,2]
[338255080,1726441866789,-601.64,0.00014794,2]
[338255081,1726441866798,-500.0,0.00014794,2]
[338255082,1726441866808,-601.64,0.00014794,2]
[338255083,1726441866817,-500.0,0.00014794,2]
[338255084,1726441866827,-601.64,0.00014794,2]
[338255085,1726441866837,-500.0,0.00014794,2]
[338255086,1726441866846,-601.64,0.00014794,2]
[338255087,1726441866855,-500.0,0.00014794,2]
[338255088,1726441866865,-601.64,0.00014794,2]
[338255089,1726441866875,-621.4683853,0.00014794,2]
[338255090,1726441866885,-601.64,0.00014794,2]
[338255091,1726441866894,-601.64,0.00014794,2]
[338255092,1726441866903,-601.64,0.00014794,2]
[338255093,1726441866913,-601.64,0.00014794,2]
[338255094,1726441866923,-601.64,0.00014794,2]
[338255095,1726441866934,-601.64,0.00014794,2]
[338255096,1726441866944,-601.64,0.00014794,2]
[338255097,1726441866954,-601.64,0.00014794,2]
[338255098,1726441866965,-500.0,0.00014794,2]
[338255099,1726441866975,-500.0,0.00014794,2]
[338255100,1726441866984,-500.0,0.00014794,2]
[338255101,1726441866994,-500.0,0.00014794,2]
[338255102,1726441867004,-436.45,0.00014794,2]
[338255103,1726441867013,-500.0,0.00014794,2]
[338255104,1726441867030,-500.0,0.00014794,2]
[338255105,1726441867039,-500.0,0.00014794,2]
[338255106,1726441867049,-500.0,0.00014794,2]
[338255107,1726441867059,-500.0,0.00014794,2]
[338255108,1726441867069,-500.0,0.00014794,2]
[338255109,1726441867079,-500.0,0.00014794,2]
[338255110,1726441867089,-500.0,0.00014794,2]
[338255111,1726441867098,-500.0,0.00014794,2]
[338255112,1726441867109,-500.0,0.00014794,2]
[338255113,1726441867118,-397.69271986,0.00014794,2]
[338255114,1726441867577,-102.30728014,0.00014794,2]
[338255115,1726441867587,-203.03726213,0.00014794,2]
[338255116,1726441867623,-296.96273787,0.00014794,2]
[338255117,1726441867633,-424.82726213,0.00014794,2]
[338255118,1726441867651,-75.17273787,0.00014794,2]
[338255119,1726441867661,-500.0,0.00014794,2]
[338255120,1726441867671,-500.0,0.00014794,2]
[338255121,1726441867681,-500.0,0.00014794,2]
[338255122,1726441867691,-500.0,0.00014794,2]
[338255123,1726441867701,-500.0,0.00014794,2]
[338255124,1726441867710,-500.0,0.00014794,2]
[338255125,1726441867720,-2594.18,0.00014794,2]
[338255126,1726441867730,-605.31605471,0.00014794,2]
[338255127,1726441867743,-1551.43541294,0.00014794,2]
[338255128,1726441867815,-566.62860673,0.00013076,2]
[338255129,1726441869204,-513.37139327,0.00013076,2]
[338255130,1726441869214,-437.42853235,0.00014794,2]
[338255131,1726441869224,-2594.18,0.00014794,2]
[338255132,1726441869233,-514.03395081,0.00014794,2]
[338255133,1726441869250,-2080.14604919,0.00014794,2]
[338255134,1726441869261,-2594.18,0.00014794,2]
[338255135,1726441869278,-404.34000621,0.00014794,2]
[338255136,1726441869299,-95.65999379,0.00014794,2]
[338255137,1726441869309,-347.24900617,0.00014794,2]
[338255138,1726441869320,-771.24583006,0.00014794,2]
[338255139,1726441869331,-1475.68516377,0.00014794,2]
[338255140,1726441869341,-500.0,0.00014794,2]
[338255141,1726441869351,-2594.18,0.00014794,2]
[338255142,1726441869362,-2489.43483623,0.00014794,2]
[338255143,1726441869374,-623.2797952,0.00014794,2]
[338255144,1726441869391,-317.91479719,0.00014794,2]
[338255145,1726441869435,-420.6543901,0.00012999,2]
[338255146,1726441869446,-1870.48057138,0.00014794,2]
[338255147,1726441869457,-500.0,0.00014794,2]
[338255148,1726441869467,-500.0,0.00014794,2]
[338255149,1726441869477,-334.42943852,0.00014794,2]
[338255150,1726441869493,-2259.75056148,0.00014794,2]
[338255151,1726441869503,-5301.11,0.00014794,2]
[338255152,1726441869513,-500.0,0.00014794,2]
[338255153,1726441869532,-500.0,0.00014794,2]
[338255154,1726441869542,-2594.18,0.00014794,2]
[338255155,1726441869553,-2649.24000859,0.00014794,2]
[338255156,1726441869580,-500.0,0.00012999,2]
[338255157,1726441869590,-0.22765892,0.00012999,2]
[338255158,1726441869602,-362.2774596,0.00012999,2]
[338255159,1726441869616,-137.49488148,0.00012999,2]
[338255160,1726441869625,-500.0,0.00012999,2]
[338255161,1726441869635,-577.19978495,0.00014794,2]
[338255162,1726441869648,-2074.67020646,0.00014794,2]
[338255163,1726441869659,-500.0,0.00014794,2]
[338255164,1726441869670,-264.18450938,0.00014794,2]
[338255165,1726441869680,-1842.14528416,0.00014794,2]
[338255166,1726441869693,-752.03471584,0.00014794,2]
[338255167,1726441869703,-5209.86528416,0.00014794,2]
[338255168,1726441869726,-500.0,0.00012999,2]
[338255169,1726441869736,-500.0,0.00012999,2]
[338255170,1726441869746,-1.69220102,0.00014794,2]
[338255171,1726441869757,-89.55251482,0.00014794,2]
[338255172,1726441869770,-331.0134237,0.00014794,2]
[338255173,1726441869795,-279.6363521,0.00012999,2]
[338255174,1726441869807,-298.11435058,0.00012999,2]
[338255175,1726441869817,-138.69564942,0.00014794,2]
[338255176,1726441869828,-30.29092688,0.00014794,2]
[338255177,1726441869838,-2594.18,0.00014794,2]
[338255178,1726441869847,-347.1316263,0.00014794,2]
[338255179,1726441869859,-1162.97499998,0.00014794,2]
[338255180,1726441869870,-470.64280618,0.00014794,2]
[338255181,1726441869881,-587.2050527,0.00014794,2]
[338255182,1726441869892,-1502.556,0.00014794,2]
[338255183,1726441938440,154.28,0.00010959,2]
[338255184,1726441970123,258.99,0.00011636,2]
[338255185,1726442487523,156.17,0.00010959,2]
[338255186,1726442525366,258.74,0.00011358,2]
[338255188,1726442934157,-2180.79473757,0.000127,2]
[338255190,1726442934197,-2180.79473757,0.000127,2]
[338255194,1726442934249,-2180.79473757,0.000127,2]
[338255196,1726442934292,-2180.79473757,0.000127,2]
[338255198,1726442934340,-466.76470179,0.000127,2]
[338255199,1726442934369,-400.0,0.000127,2]
[338255200,1726442934396,-300.0,0.00012888,2]
[338255201,1726442934423,-300.0,0.00012889,2]
[338255202,1726442934450,-714.03003578,0.0001289,2]
[338255203,1726442934488,-2180.79473757,0.0001289,2]
[338255204,1726442934520,-1798.86539807,0.0001289,2]
[338255205,1726442934548,-381.9293395,0.00012899,2]
[338255206,1726442934581,-2180.79473757,0.00012899,2]
[338255207,1726442934613,-164.40970715,0.00012899,2]
[338255208,1726442934640,-150.0,0.00012899,2]
[338255209,1726442934875,-1866.38503042,0.000129,2]
[338255216,1726442982819,159.94,0.00010959,2]
[338255220,1726443020362,258.4,0.00011352,2]
[338255229,1726443032137,-300.0,0.00012899,2]
[338255230,1726443032146,-150.0,0.00012899,2]
[338255231,1726443032156,-3090.069792,0.000129,2]
[338255232,1726443032331,-1891.96129736,0.000129,2]
[338255233,1726443032457,-4939.69147395,0.000129,2]
[338255244,1726443032670,-1015.81727259,0.000129,2]
[338255251,1726443038165,-398.17738926,0.000129,2]
[338255252,1726443038201,-37711.55034442,0.000129,2]
[338255253,1726443038210,-6350.48668304,0.000129,2]
[338255254,1726443038237,-1115.71313362,0.000129,2]
[338255255,1726443038251,-288.31638334,0.000129,2]
[338255256,1726443038262,-1028.41613914,0.000129,2]
[338255257,1726443038457,-281.76062325,0.000129,2]
[338255258,1726443038491,-5112.75593761,0.000129,2]
[338255259,1726443038500,-376.9828,0.000129,2]
[338255260,1726443038509,-163.52327028,0.000129,2]
[338255261,1726443038519,-151.75,0.0001299,2]
[338255262,1726443038530,-537.9419557,0.0001299,2]
[338255263,1726443038539,-500.0,0.00012999,2]
[338255264,1726443038550,-646.69484996,0.00012999,2]
[338255265,1726443038560,-500.0,0.00012999,2]
[338255266,1726443038570,-769.26,0.00013,2]
[338255267,1726443038579,-1004.12,0.00013,2]
[338255268,1726443038588,-1298.42567645,0.00013,2]
[338255269,1726443038599,-3026.21289201,0.00013,2]
[338255270,1726443040123,-470.73536654,0.00013,2]
[338255271,1726443040135,-971.108,0.00013,2]
[338255272,1726443040147,-1187.55632,0.00013,2]
[338255274,1726443040174,-3172.05138762,0.00013,2]
[338255275,1726443040186,-8395.8468521,0.00013,2]
[338255276,1726443040197,-899.02754983,0.00013,2]
[338255277,1726443040209,-1034.355,0.00013,2]
[338255278,1726443040220,-495.25624919,0.00013,2]
[338255279,1726443040232,-1626.45291562,0.00013,2]
[338255280,1726443040243,-1504.411741,0.00013,2]
[338255281,1726443040255,-2949.5872749,0.00013,2]
[338255282,1726443040266,-2415.6565662,0.00013,2]
[338255283,1726443040276,-6494.28046041,0.00013,2]
[338255284,1726443040287,-930.80101536,0.00013,2]
[338255285,1726443040311,-8215.81430112,0.00013,2]
[338255286,1726443040350,-493.47746496,0.00013,2]
[338255287,1726443040389,-20165.33719739,0.00013,2]
[338255312,1726443043256,-50067.30583795,0.00013,2]
[338255316,1726443043296,-103767.30000095,0.00013,2]
[338255561,1726443046149,-264.37005527,0.00013,2]
[338255566,1726443046194,-573.45,0.00013,2]
[338255572,1726443046240,-1082.61991605,0.00013,2]
[338255574,1726443046252,-850.00918047,0.00013,2]
[338255584,1726443046352,-4094.45705533,0.00013,2]
[338255596,1726443046470,-500.0,0.00012999,2]
[338255598,1726443046480,-553.90212029,0.00012999,2]
[338255600,1726443046490,-10998.89056782,0.00013,2]
[338255602,1726443046502,-14001.55960836,0.00013,2]
[338255604,1726443046512,-29704.15342375,0.00013,2]
[338255606,1726443046525,-1130.07324647,0.00013,2]
[338256415,1726443171625,942.92,0.0001239,2]
[338256416,1726443202864,158.93,0.00012342,2]
[338256418,1726443303561,250.0,0.00012367,2]
[338256419,1726443305131,229.08,0.00012367,2]
[338256420,1726443326770,221.79,0.00012376,2]
[338256421,1726443332503,250.0,0.00012376,2]
[338256422,1726443346980,10204.83,0.000125,2]
[338256423,1726443386633,200.0,0.00012395,2]
[338256424,1726443405102,680.0,0.00012421,2]
[338256426,1726443425373,300.0,0.00012421,2]
[338256427,1726443491263,155.27,0.00010959,2]
[338256428,1726443569831,271.76,0.00010925,2]
[338256430,1726443622502,380.79,0.00010959,2]
[338256431,1726443653579,865.45,0.00010959,2]
[338256432,1726443757740,161.32,0.00012418,2]
[338256433,1726443777175,833.86,0.00012417,2]
[338256434,1726443912932,456.0,0.00012152,2]
[338256435,1726444068003,250.0,0.00012164,2]
[338256437,1726444113433,171.18,0.00010959,2]
[338256440,1726444143618,828.65,0.00012159,2]
[338256451,1726444185788,374.9,0.0001215,2]
[338256452,1726444187344,258.17,0.00010242,2]
[338256453,1726444187583,258.17,0.00012506,2]
[338256455,1726444216970,292.77,0.00012169,2]
[338256463,1726444232278,-150.0,0.00012899,2]
[338256464,1726444232288,-395.9128,0.000129,2]
[338256465,1726444232297,-300.0,0.000129,4]
[338256466,1726444232306,-568.0738,0.000129,2]
[338256467,1726444232316,-199.42469731,0.000129,2]
[338256468,1726444232325,-150.0,0.00012959,2]
[338256469,1726444232335,-346.58870269,0.0001297,2]
[338256470,1726444232346,-16.40686731,0.0001297,2]
[338256471,1726444232355,-262.63293722,0.00012973,2]
[338256472,1726444232366,-237.36706278,0.00012973,2]
[338256473,1726444232376,-4646.05853589,0.00012986,2]
[338256477,1726444238238,-1185.34288774,0.000129,2]
[338256478,1726444238346,-148.35393816,0.000129,2]
[338256479,1726444238355,-5780.04606184,0.00012986,2]
[338256480,1726444238366,-821.61540227,0.00012986,2]
[338256481,1726444238375,-358.62797046,0.0001299,2]
[338256482,1726444238384,-151.75,0.0001299,2]
[338256483,1726444238394,-500.0,0.00012999,2]
[338256484,1726444238403,-500.0,0.00012999,2]
[338256485,1726444238412,-253.10410341,0.00012999,2]
[338256486,1726444238421,-500.0,0.00012999,2]
[338256487,1726444238430,-500.0,0.00012999,2]
[338256488,1726444238439,-79.54392731,0.00013,2]
[338256489,1726444238450,-2071.15178752,0.00013,2]
[338256490,1726444238461,-4171.89170924,0.00013,2]
[338256491,1726444238472,-250.0,0.00013,2]
[338256492,1726444238506,-4674.43257593,0.00013,2]
[338256493,1726444238515,-499.99,0.00013,2]
[338256494,1726444238525,-799047.90304404,0.00013,2]
[338256495,1726444238534,-653.47836066,0.00013,2]
[338256496,1726444238545,-692.34,0.00013,2]
[338256497,1726444238554,-200.0,0.00013,2]
[338256498,1726444238563,-32951.18,0.00013,2]
[338256499,1726444238573,-394.81,0.00013,2]
[338256500,1726444238582,-995.46,0.00013,2]
[338256501,1726444238591,-887.81,0.00013,2]
[338256502,1726444238600,-11296.35,0.00013,2]
[338256503,1726444238609,-11072.79,0.00013,2]
[338256504,1726444238618,-500.0,0.00013121,2]
[338256505,1726444238628,-200.0,0.00013147,2]
[338256506,1726444238636,-615.12,0.00013147,2]
[338256507,1726444238647,-615.12,0.00013151,2]
[338256508,1726444238657,-615.12,0.00013154,2]
[338256510,1726444238667,-615.12,0.00013158,2]
[338256511,1726444238676,-615.12,0.00013161,2]
[338256512,1726444238686,-615.12,0.00013164,2]
[338256513,1726444238695,-615.12,0.00013168,2]
[338256514,1726444238703,-615.12,0.00013171,2]
[338256515,1726444238712,-507.92983161,0.00013175,2]
[338256520,1726444240187,-107.19016839,0.00013175,2]
[338256521,1726444240198,-615.12,0.00013178,2]
[338256522,1726444240207,-270.26538497,0.00013182,2]
[338256525,1726444240294,-344.85461503,0.00013182,2]
[338256526,1726444240303,-615.12,0.00013185,2]
[338256527,1726444240313,-615.12,0.00013189,2]
[338256528,1726444240322,-615.12,0.00013192,2]
[338256529,1726444240331,-339.6231262,0.00013196,2]
[338256530,1726444240343,-275.4968738,0.00013196,2]
[338256531,1726444240352,-615.12,0.00013199,2]
[338256532,1726444240362,-615.12,0.00013202,2]
[338256533,1726444240371,-615.12,0.00013206,2]
[338256534,1726444240380,-150.54538497,0.00013209,2]
[338256535,1726444240391,-464.57461503,0.00013209,2]
[338256536,1726444240401,-279.97692467,0.00013213,2]
[338256537,1726444240412,-335.14307533,0.00013213,2]
[338256538,1726444240421,-1548.0,0.00013255,2]
[338256539,1726444240430,-1261.0,0.00013255,2]
[338256540,1726444240440,-624.0,0.00013255,2]
[338256541,1726444240449,-448.0,0.00013255,2]
[338256542,1726444240458,-932.0,0.00013255,2]
[338256543,1726444240468,-150.0,0.00013255,2]
[338256544,1726444240478,-810.0,0.00013255,2]
[338256545,1726444240488,-558.0,0.00013255,2]
[338256546,1726444240497,-441.47852463,0.00013255,2]
[338256547,1726444240519,-460.56973873,0.00013255,2]
[338256548,1726444240530,-524.66514586,0.00013255,2]
[338256549,1726444240541,-475.28659078,0.00013255,2]
[338256550,1726444240550,-553.0,0.00013255,2]
[338256551,1726444240559,-28.49197792,0.00013255,2]
[338256553,1726444240570,-219.50802208,0.00013255,2]
[338256555,1726444240580,-1053.70797792,0.00013255,2]
[338256557,1726444240594,-2291.29202208,0.00013255,2]
[338256559,1726444240603,-806.0,0.00013255,2]
[338256561,1726444240613,-1350.88769753,0.00013255,2]
[338256563,1726444240628,-567.11230247,0.00013255,2]
[338256565,1726444240637,-150.0,0.00013255,2]
[338256567,1726444240646,-589.28256073,0.00013255,2]
[338256569,1726444240656,-268.2,0.00013255,2]
[338256592,1726444243508,-623.1,0.00013,2]
[338256593,1726444243517,-826.49037107,0.00013255,2]
[338256594,1726444243613,-275.452,0.00013255,2]
[338256595,1726444243667,-3903.5750682,0.00013255,2]
[338256596,1726444243676,-1146.0,0.00013255,2]
[338256597,1726444243685,-2106.10717527,0.00013255,2]
[338256598,1726444243721,-11374.89282473,0.00013255,2]
[338256599,1726444243730,-150.0,0.00013255,2]
[338256600,1726444243739,-1080.0,0.00013255,2]
[338256601,1726444243749,-396.862,0.00013282,2]
[338256602,1726444243758,-362.99557,0.0001329,2]
[338256603,1726444243767,-251.41,0.00013402,2]
[338256604,1726444243777,-168.47539267,0.00013467,2]
[338256605,1726444243786,-43513.39824647,0.00013567,2]
[338256606,1726444243796,-449.21362721,0.00013567,2]
[338256607,1726444243805,-362.99558,0.000136,2]
[338256608,1726444243815,-456.0,0.00013671,2]
[338256609,1726444243824,-512.61,0.00013699,2]
[338256610,1726444243834,-200.0,0.00013699,2]
[338256612,1726444243843,-2751.0,0.00013699,2]
[338256614,1726444243852,-43058.11,0.00013699,2]
[338256616,1726444243862,-150.0,0.00013699,2]
[338256618,1726444243871,-1250.0,0.000137,2]
[338256620,1726444243880,-905.36842996,0.000137,2]
[338256621,1726444243889,-175.97,0.00013747,2]
[338256622,1726444243899,-1333.69682588,0.00013797,2]
[338256624,1726444243908,-4903.6327351,0.000138,3]
[338256626,1726444243918,-500.0,0.00013886,2]
[338256628,1726444243928,-600.0,0.000139,5]
[338256630,1726444243937,-362.99557,0.0001391,2]
[338256632,1726444243948,-680.0,0.00013973,2]
[338256634,1726444243958,-396.862,0.0001398,2]
[338256636,1726444243968,-150.0,0.00014,5]
[338256638,1726444243977,-255.0,0.00014008,2]
[338256640,1726444243986,-151.0,0.00014054,2]
[338256642,1726444243995,-150.0,0.00014059,2]
[338256644,1726444244005,-500.0,0.0001406,2]
[338256646,1726444244015,-995.46,0.00014065,2]
[338256648,1726444244025,-1000.0,0.000141,5]
[338256650,1726444244036,-1000.0,0.00014159,2]
[338256652,1726444244045,-1000.0,0.00014159,2]
[338256653,1726444244054,-1000.0,0.00014159,2]
[338256655,1726444244064,-1000.0,0.00014159,2]
[338256657,1726444244073,-1000.0,0.00014159,2]
[338256659,1726444244082,-1000.0,0.00014159,2]
[338256661,1726444244092,-1000.0,0.00014159,2]
[338256662,1726444244101,-1000.0,0.00014159,2]
[338256664,1726444244110,-1000.0,0.00014159,2]
[338256666,1726444244120,-1000.0,0.00014159,2]
[338256668,1726444244131,-1000.0,0.00014159,2]
[338256670,1726444244140,-1000.0,0.00014159,2]
[338256672,1726444244149,-1000.0,0.00014159,2]
[338256674,1726444244159,-1000.0,0.00014159,2]
[338256676,1726444244169,-1000.0,0.00014159,2]
[338256677,1726444244178,-2422.52877788,0.000142,2]
[338256679,1726444244188,-1300.0,0.000142,5]
[338256681,1726444244199,-152.0,0.00014204,3]
[338256683,1726444244208,-362.99558,0.0001422,2]
[338256685,1726444244217,-500.0,0.00014231,2]
[338256687,1726444244226,-500.0,0.00014233,2]
[338256689,1726444244236,-500.0,0.00014238,2]
[338256691,1726444244245,-500.0,0.00014238,2]
[338256693,1726444244255,-500.0,0.00014238,2]
[338256695,1726444244264,-500.0,0.00014238,2]
[338256697,1726444244274,-364.97892543,0.00014238,2]
[338256699,1726444244283,-500.0,0.00014238,2]
[338256700,1726444244292,-500.0,0.0001424,2]
[338256702,1726444244301,-500.0,0.00014248,2]
[338256704,1726444244311,-500.0,0.00014257,2]
[338256706,1726444244320,-500.0,0.00014266,2]
[338256708,1726444244330,-500.0,0.00014275,2]
[338256710,1726444244339,-500.0,0.00014284,2]
[338256712,1726444244348,-500.0,0.00014292,2]
[338256714,1726444244358,-1700.0,0.000143,5]
[338256716,1726444244368,-500.0,0.00014301,2]
[338256718,1726444244377,-500.0,0.0001431,2]
[338256720,1726444244387,-500.0,0.00014319,2]
[338256722,1726444244396,-500.0,0.00014328,2]
[338256724,1726444244414,-586.0,0.00014332,2]
[338256726,1726444244423,-5577.84710991,0.00014332,2]
[338256741,1726444246400,-299.95308801,0.0001322,2]
[338256742,1726444246414,-726.52366915,0.0001322,2]
[338256743,1726444246425,-965.71228603,0.0001322,2]
[338256744,1726444246436,-9281.37095681,0.0001322,2]
[338256745,1726444246445,-7330.15289009,0.00014332,2]
[338256746,1726444246454,-500.0,0.00014336,2]
[338256747,1726444246464,-500.0,0.00014345,2]
[338256748,1726444246473,-500.0,0.00014354,2]
[338256749,1726444246482,-500.0,0.00014363,2]
[338256750,1726444246491,-500.0,0.00014372,2]
[338256751,1726444246500,-500.0,0.0001438,2]
[338256752,1726444246510,-512.61,0.00014384,2]
[338256753,1726444246519,-500.0,0.00014389,2]
[338256754,1726444246528,-500.0,0.00014398,2]
[338256755,1726444246537,-300.0,0.000144,5]
[338256756,1726444246547,-500.0,0.00014407,2]
[338256757,1726444246556,-500.0,0.00014416,2]
[338256758,1726444246565,-150.0,0.0001442,2]
[338256759,1726444246574,-500.0,0.00014424,2]
[338256760,1726444246583,-500.0,0.00014433,2]
[338256761,1726444246593,-500.0,0.00014442,2]
[338256762,1726444246601,-500.0,0.00014451,2]
[338256763,1726444246611,-500.0,0.00014455,2]
[338256764,1726444246620,-201.922,0.00014455,2]
[338256765,1726444246629,-599.495,0.00014455,2]
[338256766,1726444246638,-500.0,0.0001446,2]
[338256767,1726444246647,-500.0,0.00014468,2]
[338256768,1726444246658,-175.97,0.00014476,2]
[338256769,1726444246667,-500.0,0.00014477,2]
[338256770,1726444246676,-500.0,0.00014486,2]
[338256771,1726444246687,-500.0,0.00014495,2]
[338256772,1726444246699,-300.0,0.000145,5]
[338256773,1726444246709,-500.0,0.00014504,2]
[338256774,1726444246719,-500.0,0.00014512,2]
[338256775,1726444246731,-1000.0,0.00014521,2]
[338256776,1726444246740,-596.923637,0.00014521,2]
[338256777,1726444246752,-500.0,0.00014521,2]
[338256778,1726444246762,-500.0,0.0001453,2]
[338256779,1726444246771,-500.0,0.00014539,2]
[338256780,1726444246780,-362.99557,0.0001454,2]
[338256781,1726444246789,-500.0,0.00014548,2]
[338256782,1726444246798,-500.0,0.00014556,2]
[338256783,1726444246807,-3499.91694137,0.00014562,2]
[338256784,1726444246819,-315.00000008,0.00014562,2]
[338256785,1726444246832,-5936.349205,0.00014562,2]
[338256786,1726444246843,-1723.08385355,0.00014562,2]
[338256787,1726444246854,-500.0,0.00014565,2]